fUST/lending_fUST_20260601
["ID","MTS","AMOUNT","RATE_DAILY","PERIOD"]
[423669710,1780293040000,-500.0,0.00015273,2]
[423669732,1780293040000,-3712.15176184,0.00015362,41]
[423669718,1780293040000,-500.0,0.00015273,2]
[423669712,1780293040000,-500.0,0.00015273,2]
[423669743,1780293040000,-500.0,0.00015543,2]
[423669748,1780293040000,-500.0,0.00015544,2]
[423669746,1780293040000,-500.0,0.00015544,2]
[423669758,1780293040000,-500.0,0.00015544,2]
[423669735,1780293040000,-152.0,0.0001551,7]
[423669752,1780293040000,-500.0,0.00015544,2]
[423669739,1780293040000,-500.0,0.00015543,2]
[423669756,1780293040000,-500.0,0.00015544,2]
[423669745,1780293040000,-500.0,0.00015543,2]
[423669750,1780293040000,-500.0,0.00015544,2]
[423669760,1780293040000,-544.81,0.00015544,2]
[423669754,1780293040000,-500.0,0.00015544,2]
[423669697,1780293040000,-500.0,0.00015271,2]
[423669734,1780293040000,-167.5168,0.00015409,2]
[423669696,1780293040000,-500.0,0.00015271,2]
[423669640,1780293040000,-500.0,0.0001527,2]
[423669691,1780293040000,-500.0,0.00015271,2]
[423669741,1780293040000,-500.0,0.00015543,2]
[423669642,1780293040000,-500.0,0.0001527,2]
[423669645,1780293040000,-500.0,0.0001527,2]
[423669656,1780293040000,-500.0,0.00015271,2]
[423669659,1780293040000,-500.0,0.00015271,2]
[423669661,1780293040000,-500.0,0.00015271,2]
[423669647,1780293040000,-500.0,0.0001527,2]
[423669650,1780293040000,-500.0,0.0001527,2]
[423669663,1780293040000,-500.0,0.00015271,2]
[423669652,1780293040000,-500.0,0.00015271,2]
[423669654,1780293040000,-500.0,0.00015271,2]
[423669669,1780293040000,-500.0,0.00015271,2]
[423669666,1780293040000,-500.0,0.00015271,2]
[423669671,1780293040000,-500.0,0.00015271,2]
[423669677,1780293040000,-500.0,0.00015271,2]
[423669679,1780293040000,-500.0,0.00015271,2]
[423669675,1780293040000,-500.0,0.00015271,2]
[423669683,1780293040000,-509.82,0.00015271,2]
[423669673,1780293040000,-500.0,0.00015271,2]
[423669681,1780293040000,-500.0,0.00015271,2]
[423669685,1780293040000,-500.0,0.00015271,2]
[423669687,1780293040000,-500.0,0.00015271,2]
[423669693,1780293040000,-502.13571736,0.00015271,2]
[423669689,1780293040000,-500.0,0.00015271,2]
[423669704,1780293040000,-500.0,0.00015273,2]
[423669701,1780293040000,-500.0,0.00015272,2]
[423669708,1780293040000,-500.0,0.00015273,2]
[423669699,1780293040000,-500.0,0.00015271,2]
[423669761,1780293040000,-500.0,0.00015544,2]
[423669737,1780293040000,-500.0,0.00015543,2]
[423669763,1780293040000,-500.0,0.00015544,2]
[423669831,1780293040000,-500.0,0.00015545,2]
[423669837,1780293040000,-344.92307621,0.00015547,2]
[423669829,1780293040000,-500.0,0.00015545,2]
[423669833,1780293040000,-500.0,0.00015546,2]
[423669825,1780293040000,-500.0,0.00015545,2]
[423669835,1780293040000,-500.0,0.00015547,2]
[423669841,1780293040000,-500.0,0.00015547,2]
[423669839,1780293040000,-500.0,0.00015547,2]
[423669843,1780293040000,-500.0,0.00015547,2]
[423669845,1780293040000,-500.0,0.00015547,2]
[423669848,1780293040000,-500.0,0.00015547,2]
[423669850,1780293040000,-501.68,0.00015547,2]
[423669852,1780293040000,-500.0,0.00015547,2]
[423669864,1780293040000,-481.84,0.000157,2]
[423669858,1780293040000,-722.76,0.000157,2]
[423669856,1780293040000,-722.76,0.000157,2]
[423669854,1780293040000,-228.73270202,0.00015586,2]
[423669860,1780293040000,-722.76,0.000157,2]
[423669862,1780293040000,-481.84,0.000157,2]
[423669866,1780293040000,-481.84,0.000157,2]
[423669877,1780293040000,-500.0,0.00015818,2]
[423669868,1780293040000,-500.0,0.00015817,2]
[423669870,1780293040000,-248.4,0.00015817,2]
[423669874,1780293040000,-500.0,0.00015817,2]
[423669875,1780293040000,-455.77948587,0.00015818,2]
[423669872,1780293040000,-500.0,0.00015817,2]
[423669765,1780293040000,-500.0,0.00015544,2]
[423669817,1780293040000,-500.0,0.00015545,2]
[423669821,1780293040000,-500.0,0.00015545,2]
[423669846,1780293040000,-500.0,0.00015547,2]
[423669819,1780293040000,-509.82,0.00015545,2]
[423669767,1780293040000,-500.0,0.00015544,2]
[423669827,1780293040000,-500.0,0.00015545,2]
[423669771,1780293040000,-1871.09,0.00015544,2]
[423669773,1780293040000,-500.0,0.00015544,2]
[423669779,1780293040000,-500.0,0.00015544,2]
[423669778,1780293040000,-500.0,0.00015544,2]
[423669769,1780293040000,-500.0,0.00015544,2]
[423669775,1780293040000,-500.0,0.00015544,2]
[423669781,1780293040000,-500.0,0.00015544,2]
[423669785,1780293040000,-500.0,0.00015544,2]
[423669787,1780293040000,-500.0,0.00015544,2]
[423669799,1780293040000,-500.0,0.00015545,2]
[423669790,1780293040000,-500.0,0.00015544,2]
[423669797,1780293040000,-500.0,0.00015545,2]
[423669784,1780293040000,-500.0,0.00015544,2]
[423669813,1780293040000,-500.0,0.00015545,2]
[423669815,1780293040000,-500.0,0.00015545,2]
[423669801,1780293040000,-500.0,0.00015545,2]
[423669812,1780293040000,-500.0,0.00015545,2]
[423669823,1780293040000,-500.0,0.00015545,2]
[423669806,1780293040000,-500.0,0.00015545,2]
[423669808,1780293040000,-500.0,0.00015545,2]
[423669791,1780293040000,-500.0,0.00015544,2]
[423669804,1780293040000,-500.0,0.00015545,2]
[423669793,1780293040000,-500.0,0.00015545,2]
[423669795,1780293040000,-500.0,0.00015545,2]
[423669803,1780293040000,-500.0,0.00015545,2]
[423669810,1780293040000,-500.0,0.00015545,2]
[423669966,1780293041000,-500.0,0.00015821,2]
[423669962,1780293041000,-500.0,0.00015821,2]
[423669968,1780293041000,-3799.40191365,0.00015972,60]
[423669964,1780293041000,-500.0,0.00015821,2]
[423669960,1780293041000,-500.0,0.00015821,2]
[423669953,1780293041000,-500.0,0.00015821,2]
[423669947,1780293041000,-500.0,0.00015819,2]
[423669949,1780293041000,-500.0,0.00015819,2]
[423669945,1780293041000,-500.0,0.00015819,2]
[423669958,1780293041000,-168.87426051,0.00015821,2]
[423669943,1780293041000,-500.0,0.00015819,2]
[423669970,1780293041000,-3799.40191365,0.00015972,60]
[423669951,1780293041000,-500.0,0.0001582,2]
[423669983,1780293041000,-500.0,0.00016092,2]
[423669998,1780293041000,-500.0,0.00016092,2]
[423669972,1780293041000,-457.46540403,0.00016078,2]
[423669978,1780293041000,-500.0,0.00016091,2]
[423669981,1780293041000,-500.0,0.00016092,2]
[423669976,1780293041000,-500.0,0.00016091,2]
[423669985,1780293041000,-544.81,0.00016092,2]
[423669987,1780293041000,-500.0,0.00016092,2]
[423669989,1780293041000,-500.0,0.00016092,2]
[423669991,1780293041000,-1871.09,0.00016092,2]
[423669993,1780293041000,-500.0,0.00016092,2]
[423669997,1780293041000,-500.0,0.00016092,2]
[423669995,1780293041000,-320.17,0.00016092,2]
[423670000,1780293041000,-500.0,0.00016092,2]
[423669942,1780293041000,-500.0,0.00015819,2]
[423669974,1780293041000,-500.0,0.00016091,2]
[423669940,1780293041000,-500.0,0.00015819,2]
[423669879,1780293041000,-641.15568637,0.00015818,2]
[423669936,1780293041000,-500.0,0.00015819,2]
[423670012,1780293041000,-500.0,0.00016093,2]
[423669881,1780293041000,-633.04,0.00015818,2]
[423669883,1780293041000,-500.0,0.00015818,2]
[423669885,1780293041000,-500.0,0.00015818,2]
[423669887,1780293041000,-544.81,0.00015818,2]
[423669889,1780293041000,-500.0,0.00015818,2]
[423669893,1780293041000,-500.0,0.00015818,2]
[423669896,1780293041000,-1871.09,0.00015818,2]
[423669897,1780293041000,-500.0,0.00015818,2]
[423669901,1780293041000,-489.99,0.00015818,2]
[423669910,1780293041000,-500.0,0.00015819,2]
[423669905,1780293041000,-500.0,0.00015818,2]
[423669899,1780293041000,-359.64,0.00015818,2]
[423669909,1780293041000,-500.0,0.00015818,2]
[423669891,1780293041000,-641.32,0.00015818,2]
[423669907,1780293041000,-500.0,0.00015818,2]
[423669903,1780293041000,-500.0,0.00015818,2]
[423669912,1780293041000,-500.0,0.00015819,2]
[423669914,1780293041000,-500.0,0.00015819,2]
[423669926,1780293041000,-500.0,0.00015819,2]
[423669916,1780293041000,-500.0,0.00015819,2]
[423669928,1780293041000,-500.0,0.00015819,2]
[423669918,1780293041000,-500.0,0.00015819,2]
[423669930,1780293041000,-500.0,0.00015819,2]
[423669932,1780293041000,-500.0,0.00015819,2]
[423669920,1780293041000,-500.0,0.00015819,2]
[423669922,1780293041000,-273.60346296,0.00015819,2]
[423669934,1780293041000,-500.0,0.00015819,2]
[423669924,1780293041000,-500.0,0.00015819,2]
[423669938,1780293041000,-509.82,0.00015819,2]
[423670005,1780293041000,-205.0,0.00016093,2]
[423670098,1780293041000,-562.92,0.00016914,2]
[423670004,1780293041000,-500.0,0.00016093,2]
[423670071,1780293041000,-500.0,0.0001664,2]
[423670075,1780293041000,-824.7478428,0.0001664,2]
[423670082,1780293041000,-500.0,0.0001664,2]
[423670080,1780293041000,-500.0,0.0001664,2]
[423670073,1780293041000,-500.0,0.0001664,2]
[423670084,1780293041000,-500.0,0.0001664,2]
[423670088,1780293041000,-509.82,0.00016641,2]
[423670078,1780293041000,-1046.3421572,0.0001664,2]
[423670086,1780293041000,-500.0,0.00016641,2]
[423670092,1780293041000,-720.0,0.00016827,2]
[423670094,1780293041000,-500.0,0.00016913,2]
[423670090,1780293041000,-379.76,0.00016641,2]
[423670111,1780293041000,-500.0,0.00016914,2]
[423670069,1780293041000,-544.81,0.0001664,2]
[423670113,1780293041000,-500.0,0.00016914,2]
[423670119,1780293041000,-509.82,0.00016915,2]
[423670117,1780293041000,-500.0,0.00016915,2]
[423670104,1780293041000,-500.0,0.00016914,2]
[423670102,1780293041000,-500.0,0.00016914,2]
[423670131,1780293041000,-500.0,0.00017188,2]
[423670100,1780293041000,-544.81,0.00016914,2]
[423670121,1780293041000,-500.0,0.00017187,2]
[423670106,1780293041000,-1871.09,0.00016914,2]
[423670125,1780293041000,-500.0,0.00017188,2]
[423670123,1780293041000,-544.81,0.00017188,2]
[423670127,1780293041000,-500.0,0.00017188,2]
[423670129,1780293041000,-1871.09,0.00017188,2]
[423670007,1780293041000,-509.82,0.00016093,2]
[423670115,1780293041000,-500.0,0.00016914,2]
[423670067,1780293041000,-500.0,0.0001664,2]
[423670096,1780293041000,-385.48,0.00016914,2]
[423670053,1780293041000,-267.62,0.00016367,2]
[423670065,1780293041000,-500.0,0.0001664,2]
[423670014,1780293041000,-500.0,0.00016093,2]
[423670002,1780293041000,-500.0,0.00016093,2]
[423670009,1780293041000,-500.0,0.00016093,2]
[423670016,1780293041000,-379.42,0.00016093,2]
[423670018,1780293041000,-166.0,0.00016095,2]
[423670029,1780293041000,-544.81,0.00016366,2]
[423670031,1780293041000,-500.0,0.00016366,2]
[423670033,1780293041000,-500.0,0.00016366,2]
[423670020,1780293041000,-457.96,0.00016365,2]
[423670023,1780293041000,-500.0,0.00016365,2]
[423670025,1780293041000,-500.0,0.00016366,2]
[423670040,1780293041000,-627.2,0.00016366,2]
[423670022,1780293041000,-500.0,0.00016365,2]
[423670035,1780293041000,-1871.09,0.00016366,2]
[423670010,1780293041000,-500.0,0.00016093,2]
[423670027,1780293041000,-500.0,0.00016366,2]
[423670057,1780293041000,-3814.65972621,0.00016583,76]
[423670052,1780293041000,-456.11,0.00016367,2]
[423670063,1780293041000,-500.0,0.00016639,2]
[423670061,1780293041000,-536.67,0.00016639,2]
[423670059,1780293041000,-3814.65972621,0.00016583,76]
[423670050,1780293041000,-160.24,0.00016367,2]
[423670055,1780293041000,-500.0,0.00016367,2]
[423670046,1780293041000,-500.0,0.00016367,2]
[423670044,1780293041000,-227.88,0.00016367,2]
[423670042,1780293041000,-500.0,0.00016366,2]
[423670036,1780293041000,-500.0,0.00016366,2]
[423670038,1780293041000,-500.0,0.00016366,2]
[423670048,1780293041000,-509.82,0.00016367,2]
[423670228,1780293042000,-500.0,0.00018558,2]
[423670224,1780293042000,-544.81,0.00018558,2]
[423670210,1780293042000,-500.0,0.00018284,2]
[423670212,1780293042000,-500.0,0.00018284,2]
[423670222,1780293042000,-864.0,0.00018509,2]
[423670214,1780293042000,-509.82,0.00018285,2]
[423670204,1780293042000,-500.0,0.00018284,2]
[423670220,1780293042000,-4019.67565494,0.00018415,92]
[423670206,1780293042000,-500.0,0.00018284,2]
[423670218,1780293042000,-4019.67565494,0.00018415,92]
[423670216,1780293042000,-152.0,0.00018327,2]
[423670202,1780293042000,-544.81,0.00018284,2]
[423670208,1780293042000,-1871.09,0.00018284,2]
[423670230,1780293042000,-1871.09,0.00018558,2]
[423670258,1780293042000,-648.05875051,0.00019106,2]
[423670232,1780293042000,-500.0,0.00018558,2]
[423670236,1780293042000,-509.82,0.00018559,2]
[423670234,1780293042000,-500.0,0.00018558,2]
[423670238,1780293042000,-544.81,0.00018832,2]
[423670242,1780293042000,-500.0,0.00018832,2]
[423670240,1780293042000,-500.0,0.00018832,2]
[423670252,1780293042000,-4069.72798133,0.00019025,97]
[423670246,1780293042000,-500.0,0.00018832,2]
[423670250,1780293042000,-509.82,0.00018833,2]
[423670248,1780293042000,-329.71895306,0.00018832,2]
[423670244,1780293042000,-1871.09,0.00018832,2]
[423670256,1780293042000,-544.81,0.00019106,2]
[423670254,1780293042000,-4069.72798133,0.00019025,97]
[423670198,1780293042000,-509.82,0.00018011,2]
[423670226,1780293042000,-500.0,0.00018558,2]
[423670200,1780293042000,-194.69,0.0001805,2]
[423670135,1780293042000,-500.0,0.00017188,2]
[423670182,1780293042000,-3934.56494749,0.00017804,86]
[423670133,1780293042000,-500.0,0.00017188,2]
[423670270,1780293042000,-1871.09,0.0001938,2]
[423670139,1780293042000,-509.82,0.00017189,2]
[423670137,1780293042000,-500.0,0.00017189,2]
[423670143,1780293042000,-3917.16769058,0.00017193,81]
[423670141,1780293042000,-3917.16769058,0.00017193,81]
[423670145,1780293042000,-455.25,0.00017461,2]
[423670147,1780293042000,-544.81,0.00017462,2]
[423670148,1780293042000,-500.0,0.00017462,2]
[423670150,1780293042000,-500.0,0.00017462,2]
[423670152,1780293042000,-1871.09,0.00017462,2]
[423670157,1780293042000,-207.84,0.00017462,2]
[423670155,1780293042000,-500.0,0.00017462,2]
[423670161,1780293042000,-500.0,0.00017463,2]
[423670186,1780293042000,-544.81,0.0001801,2]
[423670165,1780293042000,-823.9996169,0.00017575,2]
[423670166,1780293042000,-544.81,0.00017736,2]
[423670169,1780293042000,-500.0,0.00017736,2]
[423670163,1780293042000,-509.82,0.00017463,2]
[423670171,1780293042000,-500.0,0.00017736,2]
[423670173,1780293042000,-1871.09,0.00017736,2]
[423670174,1780293042000,-500.0,0.00017736,2]
[423670188,1780293042000,-500.0,0.0001801,2]
[423670190,1780293042000,-500.0,0.0001801,2]
[423670192,1780293042000,-1871.09,0.0001801,2]
[423670176,1780293042000,-500.0,0.00017736,2]
[423670194,1780293042000,-500.0,0.0001801,2]
[423670178,1780293042000,-151.84,0.00017737,2]
[423670196,1780293042000,-500.0,0.0001801,2]
[423670180,1780293042000,-509.82,0.00017737,2]
[423670159,1780293042000,-500.0,0.00017462,2]
[423670272,1780293042000,-500.0,0.0001938,2]
[423670184,1780293042000,-3934.56494749,0.00017804,86]
[423670259,1780293042000,-583.84,0.00019106,2]
[423670329,1780293042000,-509.82,0.00021025,2]
[423670330,1780293042000,-544.85,0.00021298,2]
[423670332,1780293042000,-1871.09,0.00021298,2]
[423670325,1780293042000,-544.81,0.00021024,2]
[423670351,1780293042000,-194.64620015,0.00022012,2]
[423670340,1780293042000,-152.0,0.00021587,30]
[423670349,1780293042000,-1588.34785719,0.00022012,2]
[423670345,1780293042000,-3582.57308042,0.000219,2]
[423670347,1780293042000,-43446.38604606,0.00022,2]
[423670343,1780293042000,-1593.84855096,0.000219,2]
[423670355,1780293042000,-600.408252,0.00022012,2]
[423670357,1780293042000,-162.11594572,0.00022012,2]
[423670353,1780293042000,-419.00644008,0.00022012,2]
[423670359,1780293042000,-294.9257354,0.00022012,2]
[423670338,1780293042000,-4340.05404901,0.00021468,112]
[423670362,1780293042000,-10016.81302896,0.00022012,2]
[423670368,1780293042000,-617.40091099,0.00023134,2]
[423670371,1780293042000,-168.0,0.00024,7]
[423670373,1780293042000,-1000.0,0.00024636,10]
[423670378,1780293042000,-617.40091099,0.00027103,2]
[423670382,1780293042000,-2165.74,0.0003,2]
[423670384,1780293042000,-168.0,0.0003,7]
[423670377,1780293042000,-168.0,0.00026,7]
[423670380,1780293042000,-168.0,0.00028,7]
[423670375,1780293042000,-393.0,0.00024636,10]
[423670386,1780293042000,-500.0,0.00030997,2]
[423670388,1780293042000,-500.0,0.00030997,2]
[423670390,1780293042000,-1175134.85659146,0.00031,120]
[423670397,1780293042000,-755.25292012,0.00031,120]
[423670278,1780293042000,-4124.67662262,0.00019636,102]
[423670364,1780293042000,-1000.0,0.00022396,10]
[423670327,1780293042000,-1871.09,0.00021024,2]
[423670366,1780293042000,-244.0,0.00022396,10]
[423670334,1780293042000,-509.9,0.00021299,2]
[423670276,1780293042000,-4124.67662262,0.00019636,102]
[423670263,1780293042000,-500.0,0.00019106,2]
[423670268,1780293042000,-544.81,0.0001938,2]
[423670281,1780293042000,-1871.09,0.00019654,2]
[423670261,1780293042000,-1871.09,0.00019106,2]
[423670283,1780293042000,-634.64,0.00019654,2]
[423670280,1780293042000,-544.81,0.00019654,2]
[423670265,1780293042000,-509.82,0.00019107,2]
[423670267,1780293042000,-617.40091099,0.00019166,2]
[423670297,1780293042000,-1871.09,0.00020202,2]
[423670302,1780293042000,-4204.89101517,0.00020246,107]
[423670285,1780293042000,-509.82,0.00019655,2]
[423670303,1780293042000,-4204.89101517,0.00020246,107]
[423670300,1780293042000,-509.82,0.00020203,2]
[423670274,1780293042000,-509.82,0.00019381,2]
[423670287,1780293042000,-544.81,0.00019928,2]
[423670322,1780293042000,-4227.24892256,0.00020857,111]
[423670318,1780293042000,-509.82,0.00020751,2]
[423670320,1780293042000,-4227.24892256,0.00020857,111]
[423670317,1780293042000,-1871.09,0.0002075,2]
[423670315,1780293042000,-544.81,0.0002075,2]
[423670291,1780293042000,-509.82,0.00019929,2]
[423670311,1780293042000,-509.82,0.00020477,2]
[423670313,1780293042000,-19999.96,0.000206,2]
[423670305,1780293042000,-1000.0,0.0002036,2]
[423670307,1780293042000,-544.81,0.00020476,2]
[423670290,1780293042000,-1871.09,0.00019928,2]
[423670295,1780293042000,-544.81,0.00020202,2]
[423670293,1780293042000,-152.0,0.00019965,2]
[423670309,1780293042000,-1871.09,0.00020476,2]
[423670336,1780293042000,-4340.05404901,0.00021468,112]
[423670399,1780293043000,-362.16793648,0.00031,120]
[423671250,1780293049000,-22115.26628447,0.00031,120]
[423671248,1780293049000,-500.0,0.00014996,2]
[423673818,1780293710000,-461.34655159,0.00013988,2]
[423673820,1780293727000,-160.0,0.00013955,2]
[423673821,1780293744000,-5000.0,0.00014129,2]
[423673822,1780293761000,-210.449,0.00014895,2]
[423673823,1780293777000,-500.0,0.00014997,2]
[423674009,1780294239000,-1211.57997914,0.00014699,2]
[423674933,1780294246000,-3412.47659247,0.00014699,2]
[423674924,1780294246000,-375.94342839,0.00014699,2]
[423674975,1780294247000,-271.656,0.00018599,2]
[423674965,1780294247000,-160.0,0.00017526,2]
[423674977,1780294247000,-301.42385199,0.000186,2]
[423674967,1780294247000,-451.46090228,0.00018595,2]
[423674973,1780294247000,-505.6268223,0.00018599,2]
[423674981,1780294247000,-609.72186391,0.000186,2]
[423674963,1780294247000,-160.0,0.00017526,2]
[423674969,1780294247000,-500.0,0.00018595,2]
[423674983,1780294247000,-290.14098373,0.000186,2]
[423674979,1780294247000,-716.15257786,0.000186,2]
[423674984,1780294247000,-307.06925777,0.000186,2]
[423674962,1780294247000,-160.0,0.00017526,2]
[423674956,1780294247000,-300.0,0.00017525,2]
[423674958,1780294247000,-160.0,0.00017526,2]
[423674939,1780294247000,-500.0,0.00015271,2]
[423674941,1780294247000,-500.0,0.00015545,2]
[423674942,1780294247000,-685.1595902,0.00015863,2]
[423674946,1780294247000,-228.73270201,0.00016257,2]
[423674954,1780294247000,-300.0,0.00017525,2]
[423674944,1780294247000,-179.19094,0.00015898,2]
[423674950,1780294247000,-179.19094,0.00016693,2]
[423674952,1780294247000,-300.0,0.00017525,2]
[423674948,1780294247000,-457.46540403,0.00016588,2]
[423674937,1780294247000,-179.19094,0.00015103,2]
[423674935,1780294247000,-500.0,0.00014997,2]
[423674960,1780294247000,-767.37531181,0.00017526,2]
[423674986,1780294247000,-5314.65074129,0.000186,2]
[423674996,1780294247000,-2697.49146346,0.000187,2]
[423674999,1780294247000,-609.72186391,0.000188,2]
[423674997,1780294247000,-716.15257786,0.000188,2]
[423675043,1780294247000,-609.72186391,0.000194,2]
[423675039,1780294247000,-500.0,0.00019399,2]
[423675041,1780294247000,-716.15257786,0.000194,2]
[423675045,1780294247000,-2227.33104102,0.000194,2]
[423675037,1780294247000,-2154.28454081,0.000192,2]
[423675031,1780294247000,-5314.65074129,0.000192,2]
[423675028,1780294247000,-716.15257786,0.000192,2]
[423675035,1780294247000,-1227.36089961,0.000192,2]
[423675020,1780294247000,-5314.65074129,0.00019,2]
[423675018,1780294247000,-609.72186391,0.00019,2]
[423675024,1780294247000,-2154.28454081,0.00019,2]
[423675030,1780294247000,-609.72186391,0.000192,2]
[423675033,1780294247000,-1621.35288296,0.000192,2]
[423675022,1780294247000,-1621.35288296,0.00019,2]
[423675002,1780294247000,-5314.65074129,0.000188,2]
[423675004,1780294247000,-168.94243976,0.000188,2]
[423674990,1780294247000,-1621.35288296,0.000186,2]
[423675026,1780294247000,-1227.36089961,0.00019,2]
[423675006,1780294247000,-1227.19445299,0.000188,2]
[423674988,1780294247000,-168.94243976,0.000186,2]
[423674992,1780294247000,-2154.28454081,0.000186,2]
[423675009,1780294247000,-394.15842997,0.000188,2]
[423675014,1780294247000,-1227.36089961,0.000188,2]
[423675011,1780294247000,-2154.28454081,0.000188,2]
[423675016,1780294247000,-716.15257786,0.00019,2]
[423674994,1780294247000,-1227.36089961,0.000186,2]
[423675616,1780295432000,-210.51563773,0.000185,2]
[423675609,1780295432000,-300.73738405,0.000163,2]
[423675608,1780295432000,-366.42,0.000163,2]
[423675610,1780295432000,-4332.84261595,0.000163,2]
[423675611,1780295432000,-597.4678641,0.00016465,2]
[423675612,1780295432000,-3941.18558431,0.00016465,2]
[423675613,1780295432000,-1082.65196496,0.00016631,2]
[423675624,1780295432000,-12.08326082,0.00018599,2]
[423675615,1780295432000,-1200.0,0.0001673,2]
[423675618,1780295432000,-500.0,0.00018599,2]
[423675617,1780295432000,-2360.30503058,0.00018512,2]
[423675619,1780295432000,-500.0,0.00018599,2]
[423675622,1780295432000,-500.0,0.00018599,2]
[423675620,1780295432000,-500.0,0.00018599,2]
[423675621,1780295432000,-500.0,0.00018599,2]
[423675614,1780295432000,-300.0,0.0001673,2]
[423675663,1780295433000,-500.0,0.00018599,2]
[423675655,1780295433000,-500.0,0.00018599,2]
[423675664,1780295433000,-500.0,0.00018599,2]
[423675658,1780295433000,-500.0,0.00018599,2]
[423675666,1780295433000,-500.0,0.00018599,2]
[423675646,1780295433000,-636.45797776,0.00018599,2]
[423675640,1780295433000,-307.0373061,0.00018599,2]
[423675644,1780295433000,-500.0,0.00018599,2]
[423675642,1780295433000,-180.87943308,0.00018599,2]
[423675653,1780295433000,-500.0,0.00018599,2]
[423675650,1780295433000,-500.0,0.00018599,2]
[423675649,1780295433000,-500.0,0.00018599,2]
[423675652,1780295433000,-500.0,0.00018599,2]
[423675651,1780295433000,-500.0,0.00018599,2]
[423675654,1780295433000,-500.0,0.00018599,2]
[423675647,1780295433000,-550.91913536,0.00018599,2]
[423675657,1780295433000,-500.0,0.00018599,2]
[423675672,1780295433000,-952.5416709,0.000186,2]
[423675665,1780295433000,-500.0,0.00018599,2]
[423675656,1780295433000,-500.0,0.00018599,2]
[423675678,1780295433000,-160.0,0.00018617,2]
[423675670,1780295433000,-2678.84908063,0.000186,2]
[423675669,1780295433000,-500.0,0.00018599,2]
[423675668,1780295433000,-500.0,0.00018599,2]
[423675671,1780295433000,-832.89437317,0.000186,2]
[423675674,1780295433000,-1299.63914756,0.000186,2]
[423675677,1780295433000,-767.48137801,0.00018617,2]
[423675679,1780295433000,-453.98921933,0.000188,2]
[423675675,1780295433000,-160.0,0.00018617,2]
[423675673,1780295433000,-246.34274422,0.000186,2]
[423675676,1780295433000,-160.0,0.00018617,2]
[423675661,1780295433000,-500.0,0.00018599,2]
[423675660,1780295433000,-500.0,0.00018599,2]
[423675662,1780295433000,-500.0,0.00018599,2]
[423675659,1780295433000,-500.0,0.00018599,2]
[423675667,1780295433000,-500.0,0.00018599,2]
[423675754,1780295439000,-300.0,0.00019175,2]
[423675762,1780295439000,-300.0,0.00019175,2]
[423675768,1780295439000,-1299.63914756,0.000192,2]
[423675770,1780295439000,-2678.84908063,0.000194,2]
[423675766,1780295439000,-246.34274422,0.000192,2]
[423675764,1780295439000,-2678.84908063,0.000192,2]
[423675746,1780295439000,-310.048,0.000189,2]
[423675740,1780295439000,-2224.8598613,0.000188,2]
[423675750,1780295439000,-246.34274422,0.00019,2]
[423675748,1780295439000,-2678.84908063,0.00019,2]
[423675744,1780295439000,-1299.63914756,0.000188,2]